[Event "Titled Tuesday Blitz May 10 Early 2022"]
[White "Maevsky, Nikolay"]
[Black "Paiva, Henrique M A Albergaria"]
[WhiteFideId "4198220"]
[BlackFideId "1920995"]
[WhiteElo "2149"]
[BlackElo "1975"]
[Result "1-0"]
[Round "02"]
[TimeControl "180+1"]
[Date "2022.05.11"]
[WhiteClock "0:00:04"]
[BlackClock "0:01:53"]

1. d4 {[%clk 0:03:00]}  d5 {[%clk 0:02:56]} 2. Nf3 {[%clk 0:03:00]}  c6 {[%clk 0:02:57]} 3. e3 {[%clk 0:02:59]}  Nf6 {[%clk 0:02:58]} 4. Nbd2 {[%clk 0:02:58]}  Bg4 {[%clk 0:02:58]} 5. h3 {[%clk 0:02:58]}  Bxf3 {[%clk 0:02:58]} 6. Nxf3 {[%clk 0:02:58]}  e6 {[%clk 0:02:59]} 7. c4 {[%clk 0:02:54]}  Bd6 {[%clk 0:03:00]} 8. Bd3 {[%clk 0:02:53]}  O-O {[%clk 0:03:00]} 9. O-O {[%clk 0:02:53]}  Nbd7 {[%clk 0:03:01]} 10. b3 {[%clk 0:02:54]}  e5 {[%clk 0:03:01]} 11. dxe5 {[%clk 0:02:51]}  Nxe5 {[%clk 0:03:01]} 12. Nxe5 {[%clk 0:02:47]}  Bxe5 {[%clk 0:03:02]} 13. Rb1 {[%clk 0:02:46]}  dxc4 {[%clk 0:03:03]} 14. Bxc4 {[%clk 0:02:45]}  Qe7 {[%clk 0:03:04]} 15. Bb2 {[%clk 0:02:38]}  Rad8 {[%clk 0:03:03]} 16. Qc2 {[%clk 0:02:30]}  Bxb2 {[%clk 0:03:01]} 17. Qxb2 {[%clk 0:02:27]}  Ne4 {[%clk 0:03:02]} 18. Rbd1 {[%clk 0:02:23]}  Rxd1 {[%clk 0:02:59]} 19. Rxd1 {[%clk 0:02:23]}  Rd8 {[%clk 0:03:00]} 20. Rd4 {[%clk 0:01:57]}  h6 {[%clk 0:02:57]} 21. b4 {[%clk 0:01:50]}  Nf6 {[%clk 0:02:53]} 22. a3 {[%clk 0:01:46]}  Rxd4 {[%clk 0:02:51]} 23. Qxd4 {[%clk 0:01:45]}  a5 {[%clk 0:02:51]} 24. Bd3 {[%clk 0:01:23]}  axb4 {[%clk 0:02:41]} 25. axb4 {[%clk 0:01:22]}  Nd5 {[%clk 0:02:41]} 26. b5 {[%clk 0:01:17]}  Qa3 {[%clk 0:02:40]} 27. bxc6 {[%clk 0:01:11]}  bxc6 {[%clk 0:02:40]} 28. Kh2 {[%clk 0:01:06]}  Qd6+ {[%clk 0:02:40]} 29. g3 {[%clk 0:01:06]}  c5 {[%clk 0:02:35]} 30. Qe4 {[%clk 0:01:03]}  Nf6 {[%clk 0:02:35]} 31. Qa8+ {[%clk 0:01:01]}  Qf8 {[%clk 0:02:34]} 32. Qc6 {[%clk 0:01:00]}  Qe7 {[%clk 0:02:30]} 33. Qc8+ {[%clk 0:00:58]}  Qf8 {[%clk 0:02:29]} 34. Qc7 {[%clk 0:00:58]}  Ne8 {[%clk 0:02:23]} 35. Qc6 {[%clk 0:00:52]}  Qe7 {[%clk 0:02:22]} 36. Bc4 {[%clk 0:00:49]}  Nf6 {[%clk 0:02:18]} 37. Qc8+ {[%clk 0:00:46]}  Kh7 {[%clk 0:02:18]} 38. Qc6 {[%clk 0:00:42]}  g6 {[%clk 0:02:14]} 39. Qc8 {[%clk 0:00:36]}  Kg7 {[%clk 0:02:14]} 40. Qc6 {[%clk 0:00:36]}  Nd7 {[%clk 0:02:12]} 41. Qd5 {[%clk 0:00:32]}  Ne5 {[%clk 0:02:10]} 42. Be2 {[%clk 0:00:29]}  Qf6 {[%clk 0:02:10]} 43. f4 {[%clk 0:00:28]}  Nc6 {[%clk 0:02:05]} 44. Qxc5 {[%clk 0:00:27]}  Ne7 {[%clk 0:02:05]} 45. Qd4 {[%clk 0:00:23]}  Nf5 {[%clk 0:02:04]} 46. Qxf6+ {[%clk 0:00:21]}  Kxf6 {[%clk 0:02:05]} 47. e4 {[%clk 0:00:21]}  Nd4 {[%clk 0:02:05]} 48. e5+ {[%clk 0:00:21]}  Kf5 {[%clk 0:02:05]} 49. Bd3+ {[%clk 0:00:21]}  Ke6 {[%clk 0:02:05]} 50. Be4 {[%clk 0:00:20]}  g5 {[%clk 0:02:05]} 51. Kg2 {[%clk 0:00:19]}  f5 {[%clk 0:02:04]} 52. Bb1 {[%clk 0:00:15]}  Ke7 {[%clk 0:02:00]} 53. Kf2 {[%clk 0:00:15]}  g4 {[%clk 0:02:00]} 54. hxg4 {[%clk 0:00:15]}  fxg4 {[%clk 0:02:00]} 55. f5 {[%clk 0:00:14]}  Nc6 {[%clk 0:01:59]} 56. e6 {[%clk 0:00:11]}  Kf6 {[%clk 0:01:59]} 57. Ke3 {[%clk 0:00:12]}  Ne7 {[%clk 0:02:00]} 58. Kf4 {[%clk 0:00:12]}  h5 {[%clk 0:02:01]} 59. Be4 {[%clk 0:00:12]}  Ng8 {[%clk 0:02:00]} 60. Bc6 {[%clk 0:00:11]}  Ne7 {[%clk 0:02:00]} 61. Be8 {[%clk 0:00:10]}  Nxf5 {[%clk 0:01:53]} 62. Bxh5 {[%clk 0:00:06]}  Ne7 {[%clk 0:01:49]} 63. Bxg4 {[%clk 0:00:06]}  Kg6 {[%clk 0:01:49]} 64. Ke5 {[%clk 0:00:06]}  Kg7 {[%clk 0:01:49]} 65. Kd6 {[%clk 0:00:06]}  Ng6 {[%clk 0:01:50]} 66. e7 {[%clk 0:00:04]}  Nxe7 {[%clk 0:01:50]} 67. Kxe7 {[%clk 0:00:03]}  Kg6 {[%clk 0:01:51]} 68. Bf3 {[%clk 0:00:04]}  Kg5 {[%clk 0:01:52]} 69. g4 {[%clk 0:00:04]}  Kf4 {[%clk 0:01:53]} 70. Kf6 {[%clk 0:00:04]} 1-0


[Site "https://www.chess.com"]

[Event "Titled Tuesday Blitz May 10 Early 2022"]
[White "Maksimovic, Bojan"]
[Black "Mikhnenko, Alexander"]
[WhiteFideId "14408120"]
[BlackFideId "34143014"]
[WhiteElo "2448"]
[BlackElo "2117"]
[Result "1-0"]
[Round "02"]
[TimeControl "180+1"]
[Date "2022.05.11"]
[WhiteClock "0:00:03"]
[BlackClock "0:00:00"]

1. d4 {[%clk 0:03:00]}  d5 {[%clk 0:02:54]} 2. c4 {[%clk 0:03:00]}  c6 {[%clk 0:02:51]} 3. Nf3 {[%clk 0:03:00]}  Nf6 {[%clk 0:02:45]} 4. e3 {[%clk 0:03:00]}  Bf5 {[%clk 0:02:30]} 5. Bd3 {[%clk 0:02:58]}  Bxd3 {[%clk 0:02:22]} 6. Qxd3 {[%clk 0:02:58]}  e6 {[%clk 0:02:19]} 7. O-O {[%clk 0:02:59]}  Be7 {[%clk 0:02:12]} 8. Nc3 {[%clk 0:02:58]}  O-O {[%clk 0:02:12]} 9. e4 {[%clk 0:02:59]}  dxe4 {[%clk 0:02:11]} 10. Nxe4 {[%clk 0:02:59]}  Nxe4 {[%clk 0:02:11]} 11. Qxe4 {[%clk 0:03:00]}  Nd7 {[%clk 0:02:11]} 12. Re1 {[%clk 0:02:53]}  Nf6 {[%clk 0:02:08]} 13. Qc2 {[%clk 0:02:52]}  c5 {[%clk 0:02:07]} 14. dxc5 {[%clk 0:02:51]}  Bxc5 {[%clk 0:02:07]} 15. Bg5 {[%clk 0:02:49]}  h6 {[%clk 0:02:06]} 16. Rad1 {[%clk 0:02:48]}  Qe7 {[%clk 0:02:02]} 17. Bxf6 {[%clk 0:02:33]}  Qxf6 {[%clk 0:02:00]} 18. Rd7 {[%clk 0:02:32]}  b6 {[%clk 0:01:54]} 19. Ne5 {[%clk 0:02:07]}  Rad8 {[%clk 0:01:46]} 20. Rxa7 {[%clk 0:01:31]}  Rd4 {[%clk 0:01:02]} 21. Nf3 {[%clk 0:00:45]}  Rf4 {[%clk 0:00:52]} 22. a3 {[%clk 0:00:20]}  b5 {[%clk 0:00:49]} 23. Ra5 {[%clk 0:00:11]}  Rxc4 {[%clk 0:00:44]} 24. Qe2 {[%clk 0:00:11]}  Rg4 {[%clk 0:00:19]} 25. Rxb5 {[%clk 0:00:09]}  Bd6 {[%clk 0:00:18]} 26. h3 {[%clk 0:00:09]}  Rf4 {[%clk 0:00:15]} 27. Rb6 {[%clk 0:00:06]}  Bc5 {[%clk 0:00:13]} 28. Rc6 {[%clk 0:00:07]}  Ba7 {[%clk 0:00:12]} 29. Rc7 {[%clk 0:00:07]}  Bb8 {[%clk 0:00:12]} 30. Rb7 {[%clk 0:00:06]}  Qg6 {[%clk 0:00:10]} 31. Rb4 {[%clk 0:00:04]}  Rxb4 {[%clk 0:00:09]} 32. axb4 {[%clk 0:00:05]}  Rd8 {[%clk 0:00:09]} 33. b5 {[%clk 0:00:05]}  Qf5 {[%clk 0:00:09]} 34. Rd1 {[%clk 0:00:04]}  Rxd1+ {[%clk 0:00:07]} 35. Qxd1 {[%clk 0:00:05]}  Qxb5 {[%clk 0:00:08]} 36. Qd8+ {[%clk 0:00:05]}  Kh7 {[%clk 0:00:08]} 37. Qd2 {[%clk 0:00:05]}  Be5 {[%clk 0:00:06]} 38. Qc2+ {[%clk 0:00:05]}  g6 {[%clk 0:00:05]} 39. b3 {[%clk 0:00:04]}  Bf6 {[%clk 0:00:04]} 40. Qc4 {[%clk 0:00:01]}  Qxc4 {[%clk 0:00:02]} 41. bxc4 {[%clk 0:00:02]}  e5 {[%clk 0:00:02]} 42. Kf1 {[%clk 0:00:03]}  Kg7 {[%clk 0:00:02]} 43. Ke2 {[%clk 0:00:03]}  Kf8 {[%clk 0:00:02]} 44. Kd3 {[%clk 0:00:04]}  Ke7 {[%clk 0:00:01]} 45. Ke4 {[%clk 0:00:05]}  Ke6 {[%clk 0:00:01]} 46. g4 {[%clk 0:00:03]}  Bg7 {[%clk 0:00:00]} 47. g5 {[%clk 0:00:03]} 1-0


[Site "https://www.chess.com"]

[Event "Titled Tuesday Blitz May 10 Early 2022"]
[White "Marin Masis, Jose Esteban"]
[Black "Perez Rodriguez, Jennifer"]
[WhiteFideId "6508146"]
[BlackFideId "3507831"]
[WhiteElo "1710"]
[BlackElo "2170"]
[Result "0-1"]
[Round "02"]
[TimeControl "180+1"]
[Date "2022.05.11"]
[WhiteClock "0:00:18"]
[BlackClock "0:01:29"]

1. e4 {[%clk 0:03:00]}  e5 {[%clk 0:02:59]} 2. Nf3 {[%clk 0:03:00]}  Nc6 {[%clk 0:03:00]} 3. d4 {[%clk 0:03:00]}  exd4 {[%clk 0:03:00]} 4. Bc4 {[%clk 0:03:00]}  Nf6 {[%clk 0:02:59]} 5. O-O {[%clk 0:03:00]}  Nxe4 {[%clk 0:02:59]} 6. Re1 {[%clk 0:03:00]}  d5 {[%clk 0:03:00]} 7. Bxd5 {[%clk 0:03:00]}  Qxd5 {[%clk 0:03:01]} 8. Nc3 {[%clk 0:03:01]}  Qa5 {[%clk 0:03:00]} 9. Nxe4 {[%clk 0:03:00]}  Be6 {[%clk 0:03:00]} 10. Bd2 {[%clk 0:02:58]}  Bb4 {[%clk 0:02:59]} 11. a3 {[%clk 0:02:55]}  Bxd2 {[%clk 0:02:59]} 12. Qxd2 {[%clk 0:02:55]}  Qxd2 {[%clk 0:02:59]} 13. Nexd2 {[%clk 0:02:55]}  O-O-O {[%clk 0:02:59]} 14. Ne5 {[%clk 0:02:52]}  Nxe5 {[%clk 0:02:57]} 15. Rxe5 {[%clk 0:02:53]}  Rd5 {[%clk 0:02:52]} 16. Rae1 {[%clk 0:02:51]}  Rhd8 {[%clk 0:02:49]} 17. Nf3 {[%clk 0:02:22]}  Rxe5 {[%clk 0:02:47]} 18. Nxe5 {[%clk 0:02:20]}  c5 {[%clk 0:02:43]} 19. f4 {[%clk 0:01:37]}  Kc7 {[%clk 0:02:39]} 20. Kf2 {[%clk 0:01:36]}  f6 {[%clk 0:02:32]} 21. Nd3 {[%clk 0:01:19]}  Bf5 {[%clk 0:02:30]} 22. Nxc5 {[%clk 0:01:17]}  Bxc2 {[%clk 0:02:27]} 23. Ne6+ {[%clk 0:01:16]}  Kc8 {[%clk 0:02:27]} 24. Nxd8 {[%clk 0:01:12]}  Kxd8 {[%clk 0:02:28]} 25. Re2 {[%clk 0:01:08]}  Bf5 {[%clk 0:02:26]} 26. Rd2 {[%clk 0:01:07]}  d3 {[%clk 0:02:25]} 27. h3 {[%clk 0:01:07]}  h5 {[%clk 0:02:24]} 28. Kf3 {[%clk 0:01:07]}  h4 {[%clk 0:02:19]} 29. Ke3 {[%clk 0:01:03]}  Kc7 {[%clk 0:02:17]} 30. Rd1 {[%clk 0:01:00]}  Kd6 {[%clk 0:02:17]} 31. Rc1 {[%clk 0:00:59]}  b5 {[%clk 0:02:12]} 32. b4 {[%clk 0:00:59]}  g6 {[%clk 0:02:03]} 33. Rc5 {[%clk 0:00:56]}  a6 {[%clk 0:02:04]} 34. Kf3 {[%clk 0:00:34]}  d2 {[%clk 0:01:47]} 35. Ke2 {[%clk 0:00:31]}  Be4 {[%clk 0:01:47]} 36. g3 {[%clk 0:00:20]}  hxg3 {[%clk 0:01:44]} 37. Kxd2 {[%clk 0:00:21]}  g2 {[%clk 0:01:44]} 38. Rc1 {[%clk 0:00:21]}  Bf5 {[%clk 0:01:38]} 39. h4 {[%clk 0:00:20]}  Bh3 {[%clk 0:01:31]} 40. Ke3 {[%clk 0:00:20]}  Ke6 {[%clk 0:01:32]} 41. Kf3 {[%clk 0:00:19]}  Kf5 {[%clk 0:01:32]} 42. Kg3 {[%clk 0:00:20]}  Bg4 {[%clk 0:01:30]} 43. Rc5+ {[%clk 0:00:19]}  Ke4 {[%clk 0:01:29]} 44. Kxg2 {[%clk 0:00:18]}  Kxf4 {[%clk 0:01:29]} 45. Rc6 {[%clk 0:00:18]}  Bf3+ {[%clk 0:01:28]} 46. Kf2 {[%clk 0:00:18]}  Bxc6 {[%clk 0:01:29]} 0-1


[Site "https://www.chess.com"]

[Event "Titled Tuesday Blitz May 10 Early 2022"]
[White "Marin Ramirez, Gerardo"]
[Black "Chernomordik, Pavel"]
[WhiteFideId "3901068"]
[BlackFideId "2804530"]
[WhiteElo "1920"]
[BlackElo "2220"]
[Result "0-1"]
[Round "02"]
[TimeControl "180+1"]
[Date "2022.05.11"]
[WhiteClock "0:00:02"]
[BlackClock "0:01:26"]

1. d4 {[%clk 0:02:36]}  g6 {[%clk 0:02:58]} 2. Nf3 {[%clk 0:02:36]}  Bg7 {[%clk 0:02:58]} 3. c4 {[%clk 0:02:36]}  d6 {[%clk 0:02:57]} 4. Nc3 {[%clk 0:02:36]}  Nc6 {[%clk 0:02:57]} 5. h3 {[%clk 0:02:32]}  e5 {[%clk 0:02:56]} 6. dxe5 {[%clk 0:02:31]}  Nxe5 {[%clk 0:02:56]} 7. Nxe5 {[%clk 0:02:27]}  Bxe5 {[%clk 0:02:55]} 8. Qd3 {[%clk 0:02:14]}  Ne7 {[%clk 0:02:53]} 9. Bg5 {[%clk 0:02:04]}  c6 {[%clk 0:02:48]} 10. O-O-O {[%clk 0:01:55]}  h6 {[%clk 0:02:42]} 11. Be3 {[%clk 0:01:42]}  Nf5 {[%clk 0:02:38]} 12. g4 {[%clk 0:01:31]}  Nxe3 {[%clk 0:02:36]} 13. Qxe3 {[%clk 0:01:30]}  Qe7 {[%clk 0:02:23]} 14. f4 {[%clk 0:01:18]}  Bf6 {[%clk 0:02:21]} 15. Qxe7+ {[%clk 0:01:14]}  Kxe7 {[%clk 0:02:14]} 16. Ne4 {[%clk 0:01:12]}  Rd8 {[%clk 0:02:13]} 17. Bg2 {[%clk 0:01:04]}  Bg7 {[%clk 0:02:10]} 18. Bf3 {[%clk 0:00:48]}  Be6 {[%clk 0:02:08]} 19. b3 {[%clk 0:00:42]}  a5 {[%clk 0:02:02]} 20. Kc2 {[%clk 0:00:30]}  a4 {[%clk 0:02:01]} 21. Nc3 {[%clk 0:00:30]}  axb3+ {[%clk 0:01:59]} 22. axb3 {[%clk 0:00:28]}  Ra3 {[%clk 0:01:53]} 23. Rd3 {[%clk 0:00:23]}  b5 {[%clk 0:01:40]} 24. Bxc6 {[%clk 0:00:17]}  bxc4 {[%clk 0:01:39]} 25. Nd5+ {[%clk 0:00:15]}  Bxd5 {[%clk 0:01:35]} 26. Rxd5 {[%clk 0:00:13]}  Ra2+ {[%clk 0:01:29]} 27. Kb1 {[%clk 0:00:02]}  Ra1+ {[%clk 0:01:26]} 0-1


[Site "https://www.chess.com"]

[Event "Titled Tuesday Blitz May 10 Early 2022"]
[White "Martinez Alcantara, Jose Eduardo"]
[Black "Perez Gormaz, Matias"]
[WhiteFideId "3805662"]
[BlackFideId "3406342"]
[WhiteElo "2690"]
[BlackElo "2341"]
[Result "1-0"]
[Round "02"]
[TimeControl "180+1"]
[Date "2022.05.10"]
[WhiteClock "0:01:47"]
[BlackClock "0:00:41"]

1. e4 {[%clk 0:03:00]}  d5 {[%clk 0:03:00]} 2. exd5 {[%clk 0:03:01]}  Qxd5 {[%clk 0:03:01]} 3. Nf3 {[%clk 0:03:01]}  Qd8 {[%clk 0:03:02]} 4. d4 {[%clk 0:03:00]}  Bg4 {[%clk 0:03:00]} 5. Be2 {[%clk 0:02:59]}  Nf6 {[%clk 0:02:59]} 6. c3 {[%clk 0:02:57]}  e6 {[%clk 0:02:59]} 7. Qb3 {[%clk 0:02:56]}  Qc8 {[%clk 0:02:45]} 8. Bf4 {[%clk 0:02:48]}  Nbd7 {[%clk 0:02:44]} 9. Nbd2 {[%clk 0:02:48]}  Be7 {[%clk 0:02:40]} 10. h3 {[%clk 0:02:44]}  Bh5 {[%clk 0:02:34]} 11. O-O {[%clk 0:02:44]}  O-O {[%clk 0:02:33]} 12. Nc4 {[%clk 0:02:37]}  Rd8 {[%clk 0:02:25]} 13. Rad1 {[%clk 0:02:36]}  a6 {[%clk 0:01:59]} 14. a4 {[%clk 0:02:32]}  b6 {[%clk 0:01:58]} 15. Rfe1 {[%clk 0:02:30]}  Qb7 {[%clk 0:01:55]} 16. Nce5 {[%clk 0:01:53]}  Nxe5 {[%clk 0:01:51]} 17. Nxe5 {[%clk 0:01:54]}  Bxe2 {[%clk 0:01:50]} 18. Rxe2 {[%clk 0:01:55]}  Rac8 {[%clk 0:01:42]} 19. Nxf7 {[%clk 0:01:53]}  Rd5 {[%clk 0:00:57]} 20. Ng5 {[%clk 0:01:53]}  Nh5 {[%clk 0:00:52]} 21. Nxe6 {[%clk 0:01:53]}  Kh8 {[%clk 0:00:48]} 22. Be5 {[%clk 0:01:52]}  Bf6 {[%clk 0:00:47]} 23. Rde1 {[%clk 0:01:52]}  Re8 {[%clk 0:00:41]} 24. Nxc7 {[%clk 0:01:47]} 1-0


[Site "https://www.chess.com"]

[Event "Titled Tuesday Blitz May 10 Early 2022"]
[White "Matinian, Nikita"]
[Black "Bintang, Rasyid A. Hidayat"]
[WhiteFideId "24129100"]
[BlackFideId "7105355"]
[WhiteElo "2422"]
[BlackElo "2443"]
[Result "1-0"]
[Round "02"]
[TimeControl "180+1"]
[Date "2022.05.11"]
[WhiteClock "0:02:07"]
[BlackClock "0:01:59"]

1. e4 {[%clk 0:03:00]}  d5 {[%clk 0:02:59]} 2. exd5 {[%clk 0:03:00]}  Nf6 {[%clk 0:02:59]} 3. d4 {[%clk 0:03:00]}  Nxd5 {[%clk 0:02:59]} 4. c4 {[%clk 0:02:58]}  Nb6 {[%clk 0:02:59]} 5. Nc3 {[%clk 0:02:57]}  e5 {[%clk 0:02:59]} 6. Be3 {[%clk 0:02:55]}  exd4 {[%clk 0:02:59]} 7. Qxd4 {[%clk 0:02:56]}  Qxd4 {[%clk 0:02:59]} 8. Bxd4 {[%clk 0:02:56]}  Nc6 {[%clk 0:02:59]} 9. Be3 {[%clk 0:02:54]}  Be6 {[%clk 0:02:55]} 10. c5 {[%clk 0:02:45]}  Nd5 {[%clk 0:02:29]} 11. Nxd5 {[%clk 0:02:45]}  Bxd5 {[%clk 0:02:30]} 12. O-O-O {[%clk 0:02:44]}  O-O-O {[%clk 0:02:30]} 13. b3 {[%clk 0:02:36]}  b6 {[%clk 0:02:19]} 14. Nf3 {[%clk 0:02:32]}  bxc5 {[%clk 0:02:12]} 15. Ba6+ {[%clk 0:02:10]}  Kb8 {[%clk 0:02:12]} 16. Bb5 {[%clk 0:02:11]}  Be7 {[%clk 0:02:07]} 17. Rxd5 {[%clk 0:02:10]}  Rxd5 {[%clk 0:02:04]} 18. Bxc6 {[%clk 0:02:09]}  Rdd8 {[%clk 0:01:59]} 19. Ne5 {[%clk 0:02:07]}  Rhf8 {[%clk 0:01:59]} 20. Nd7+ {[%clk 0:02:07]} 1-0


[Site "https://www.chess.com"]

[Event "Titled Tuesday Blitz May 10 Early 2022"]
[White "Melaugh, Shane"]
[Black "Rastbod, Ali"]
[WhiteFideId "2509580"]
[BlackFideId "12567477"]
[WhiteElo "1972"]
[BlackElo "2147"]
[Result "0-1"]
[Round "02"]
[TimeControl "180+1"]
[Date "2022.05.11"]
[WhiteClock "0:00:52"]
[BlackClock "0:01:39"]

1. c4 {[%clk 0:02:58]}  e5 {[%clk 0:02:57]} 2. Nc3 {[%clk 0:02:58]}  Nc6 {[%clk 0:02:57]} 3. Nf3 {[%clk 0:02:54]}  f5 {[%clk 0:02:57]} 4. g3 {[%clk 0:02:52]}  Nf6 {[%clk 0:02:56]} 5. Bg2 {[%clk 0:02:52]}  Bc5 {[%clk 0:02:56]} 6. O-O {[%clk 0:02:51]}  d6 {[%clk 0:02:57]} 7. e3 {[%clk 0:02:51]}  e4 {[%clk 0:02:57]} 8. Ne1 {[%clk 0:02:49]}  O-O {[%clk 0:02:55]} 9. d4 {[%clk 0:02:45]}  Bb6 {[%clk 0:02:55]} 10. b4 {[%clk 0:02:39]}  Nxb4 {[%clk 0:02:51]} 11. Qb3 {[%clk 0:02:39]}  c5 {[%clk 0:02:51]} 12. Na4 {[%clk 0:02:20]}  Nc6 {[%clk 0:02:47]} 13. Ba3 {[%clk 0:02:07]}  cxd4 {[%clk 0:02:45]} 14. c5+ {[%clk 0:02:05]}  d5 {[%clk 0:02:42]} 15. cxb6 {[%clk 0:02:05]}  Re8 {[%clk 0:02:36]} 16. bxa7 {[%clk 0:01:51]}  d3 {[%clk 0:02:28]} 17. Bb4 {[%clk 0:01:46]}  Nxb4 {[%clk 0:02:25]} 18. Qxb4 {[%clk 0:01:45]}  Rxa7 {[%clk 0:02:25]} 19. Nb6 {[%clk 0:01:42]}  Be6 {[%clk 0:02:24]} 20. a4 {[%clk 0:01:39]}  Ng4 {[%clk 0:02:19]} 21. h3 {[%clk 0:01:36]}  Ne5 {[%clk 0:02:20]} 22. a5 {[%clk 0:01:35]}  Nc6 {[%clk 0:02:16]} 23. Qc5 {[%clk 0:01:33]}  d4 {[%clk 0:02:16]} 24. exd4 {[%clk 0:01:29]}  Qxd4 {[%clk 0:02:17]} 25. Qb5 {[%clk 0:01:19]}  Rd8 {[%clk 0:02:10]} 26. Bh1 {[%clk 0:01:13]}  Qxa1 {[%clk 0:02:09]} 27. Nxd3 {[%clk 0:01:09]}  Qxa5 {[%clk 0:02:08]} 28. Qxa5 {[%clk 0:01:03]}  Rxa5 {[%clk 0:02:09]} 29. Nf4 {[%clk 0:01:03]}  Bf7 {[%clk 0:02:03]} 30. Bg2 {[%clk 0:01:03]}  Ra2 {[%clk 0:01:54]} 31. h4 {[%clk 0:01:00]}  Ne5 {[%clk 0:01:49]} 32. Bh3 {[%clk 0:00:57]}  g6 {[%clk 0:01:47]} 33. h5 {[%clk 0:00:57]}  g5 {[%clk 0:01:43]} 34. Bxf5 {[%clk 0:00:51]}  gxf4 {[%clk 0:01:41]} 35. gxf4 {[%clk 0:00:51]}  Nf3+ {[%clk 0:01:40]} 36. Kg2 {[%clk 0:00:52]}  Nh4+ {[%clk 0:01:39]} 0-1


[Site "https://www.chess.com"]

[Event "Titled Tuesday Blitz May 10 Early 2022"]
[White "Mikhalsky, Vladimir"]
[Black "Vlassov, Nikolai"]
[WhiteFideId "14144352"]
[BlackFideId "4103360"]
[WhiteElo "2301"]
[BlackElo "2407"]
[Result "1-0"]
[Round "02"]
[TimeControl "180+1"]
[Date "2022.05.11"]
[WhiteClock "0:01:22"]
[BlackClock "0:00:59"]

1. c4 {[%clk 0:03:00]}  e5 {[%clk 0:02:59]} 2. Nc3 {[%clk 0:02:58]}  Nf6 {[%clk 0:02:59]} 3. g3 {[%clk 0:02:58]}  Bb4 {[%clk 0:02:58]} 4. Bg2 {[%clk 0:02:57]}  O-O {[%clk 0:02:56]} 5. e4 {[%clk 0:02:56]}  Nc6 {[%clk 0:02:55]} 6. Nge2 {[%clk 0:02:55]}  a5 {[%clk 0:02:53]} 7. O-O {[%clk 0:02:53]}  d6 {[%clk 0:02:53]} 8. h3 {[%clk 0:02:53]}  h6 {[%clk 0:02:52]} 9. d3 {[%clk 0:02:51]}  Ne8 {[%clk 0:02:29]} 10. g4 {[%clk 0:02:45]}  Bd7 {[%clk 0:02:14]} 11. f4 {[%clk 0:02:40]}  exf4 {[%clk 0:02:14]} 12. Nxf4 {[%clk 0:02:39]}  Nd4 {[%clk 0:02:05]} 13. Be3 {[%clk 0:02:28]}  Bc5 {[%clk 0:02:04]} 14. Qe1 {[%clk 0:02:25]}  Ne6 {[%clk 0:01:50]} 15. Bxc5 {[%clk 0:02:13]}  dxc5 {[%clk 0:01:47]} 16. Rd1 {[%clk 0:02:00]}  Nd4 {[%clk 0:01:43]} 17. Nce2 {[%clk 0:01:59]}  c6 {[%clk 0:01:36]} 18. Nxd4 {[%clk 0:01:57]}  cxd4 {[%clk 0:01:36]} 19. e5 {[%clk 0:01:57]}  Nc7 {[%clk 0:01:34]} 20. Qe4 {[%clk 0:01:51]}  Ne6 {[%clk 0:01:34]} 21. Nxe6 {[%clk 0:01:44]}  Bxe6 {[%clk 0:01:34]} 22. Rf4 {[%clk 0:01:44]}  g5 {[%clk 0:01:24]} 23. Rf6 {[%clk 0:01:42]}  Kg7 {[%clk 0:01:24]} 24. Rdf1 {[%clk 0:01:40]}  Qb6 {[%clk 0:01:21]} 25. R1f2 {[%clk 0:01:37]}  Rad8 {[%clk 0:01:20]} 26. h4 {[%clk 0:01:27]}  gxh4 {[%clk 0:01:20]} 27. Qf4 {[%clk 0:01:27]}  Qb4 {[%clk 0:00:59]} 28. Qxh6+ {[%clk 0:01:22]}  Kg8 {[%clk 0:00:59]} 29. Qg5+ {[%clk 0:01:22]} 1-0


[Site "https://www.chess.com"]

[Event "Titled Tuesday Blitz May 10 Early 2022"]
[White "Morefield, Jason"]
[Black "Ovezdurdyyeva, Jemal"]
[WhiteFideId "30920825"]
[BlackFideId "14001888"]
[WhiteElo "2171"]
[BlackElo "1946"]
[Result "1-0"]
[Round "02"]
[TimeControl "180+1"]
[Date "2022.05.11"]
[WhiteClock "0:00:01"]
[BlackClock "0:00:12"]

1. d4 {[%clk 0:03:00]}  Nf6 {[%clk 0:02:57]} 2. c4 {[%clk 0:03:01]}  g6 {[%clk 0:02:58]} 3. Nc3 {[%clk 0:03:01]}  d5 {[%clk 0:02:58]} 4. Nf3 {[%clk 0:03:01]}  Bg7 {[%clk 0:02:57]} 5. Qb3 {[%clk 0:03:01]}  dxc4 {[%clk 0:02:51]} 6. Qxc4 {[%clk 0:03:02]}  O-O {[%clk 0:02:51]} 7. e4 {[%clk 0:03:03]}  Bg4 {[%clk 0:02:46]} 8. Be2 {[%clk 0:02:50]}  Nc6 {[%clk 0:02:39]} 9. d5 {[%clk 0:02:50]}  Bxf3 {[%clk 0:02:37]} 10. gxf3 {[%clk 0:02:48]}  Ne5 {[%clk 0:02:34]} 11. Qb3 {[%clk 0:02:47]}  Rb8 {[%clk 0:02:21]} 12. f4 {[%clk 0:02:40]}  Ned7 {[%clk 0:02:20]} 13. e5 {[%clk 0:02:34]}  Ne8 {[%clk 0:02:20]} 14. Be3 {[%clk 0:02:28]}  b6 {[%clk 0:02:11]} 15. h4 {[%clk 0:02:20]}  Nc5 {[%clk 0:02:05]} 16. Qc4 {[%clk 0:02:11]}  f6 {[%clk 0:01:52]} 17. b4 {[%clk 0:01:42]}  fxe5 {[%clk 0:01:28]} 18. bxc5 {[%clk 0:01:41]}  exf4 {[%clk 0:01:27]} 19. Bd4 {[%clk 0:01:12]}  e5 {[%clk 0:01:26]} 20. d6+ {[%clk 0:00:56]}  Kh8 {[%clk 0:01:13]} 21. h5 {[%clk 0:00:43]}  g5 {[%clk 0:01:12]} 22. h6 {[%clk 0:00:25]}  Bf6 {[%clk 0:01:12]} 23. Nd5 {[%clk 0:00:18]}  exd4 {[%clk 0:01:09]} 24. Bh5 {[%clk 0:00:19]}  cxd6 {[%clk 0:01:06]} 25. c6 {[%clk 0:00:17]}  Nc7 {[%clk 0:01:04]} 26. Kf1 {[%clk 0:00:14]}  b5 {[%clk 0:00:58]} 27. Qb3 {[%clk 0:00:14]}  a5 {[%clk 0:00:57]} 28. Nxc7 {[%clk 0:00:12]}  Qxc7 {[%clk 0:00:57]} 29. Qd5 {[%clk 0:00:12]}  Rbc8 {[%clk 0:00:53]} 30. Bf3 {[%clk 0:00:11]}  Qb6 {[%clk 0:00:45]} 31. Re1 {[%clk 0:00:09]}  Qc5 {[%clk 0:00:44]} 32. Qe6 {[%clk 0:00:08]}  Rcd8 {[%clk 0:00:31]} 33. Bd5 {[%clk 0:00:07]}  d3 {[%clk 0:00:28]} 34. Kg2 {[%clk 0:00:07]}  g4 {[%clk 0:00:22]} 35. Rh5 {[%clk 0:00:06]}  f3+ {[%clk 0:00:19]} 36. Kg3 {[%clk 0:00:05]}  d2 {[%clk 0:00:17]} 37. Rd1 {[%clk 0:00:06]}  Qc2 {[%clk 0:00:16]} 38. Bb3 {[%clk 0:00:03]}  Qg6 {[%clk 0:00:16]} 39. Rf5 {[%clk 0:00:02]}  Rde8 {[%clk 0:00:16]} 40. Rxf6 {[%clk 0:00:02]}  Rxf6 {[%clk 0:00:15]} 41. Qd5 {[%clk 0:00:02]}  Qf5 {[%clk 0:00:15]} 42. Qd4 {[%clk 0:00:02]}  Qc5 {[%clk 0:00:12]} 43. Qxf6# {[%clk 0:00:01]} 1-0


[Site "https://www.chess.com"]